Workbook

Sheet Лист1
D1: Командные результаты 1 этапа "Защитник отечества"
I2: сумма | J2: место
A3: 1 Кашапов Марсель СОШ56 18 2005 00:07:32 +00:00 1 | I3: 1
A4: 3 Шакуров Камиль СОШ56 59 2005 00:07:39 +00:07 3 | I4: 3
A5: 2 Леля Екатерина СОШ56 82 2005 00:07:19 +00:00 = 1 | I5: 1
A6: 27 Бычкова Оля СОШ56 40 2005 00:17:26 +10:07 27 | I6: 27
I7: =SUM(I3:I6) -> 32 | J7: 1
A9: 9 Майдибор Денис СОШ53 117 2005 00:08:17 +00:45 9 | I9: 9
A10: 19 Ильин Андрей СОШ53 116 2005 00:08:47 +01:15 19 | I10: 19
A11: 3 Сысоева Анжелика СОШ53 119 2005 00:07:20 +00:01 3 | I11: 3
A12: 22 Липина Виолетта СОШ53 118 2005 00:12:23 +05:04 22 | I12: 22
I13: =SUM(I9:I12) -> 53 | J13: 2
A15: 2 Гарифуллин Раэль СОШ44 124 2009 00:07:33 +00:01 2 | I15: 2
A16: 24 Коломыцев Ефим СОШ44 125 00:09:28 +01:56 24 | I16: 24
A17: 1 Ахметвалиева Аделия СОШ44 126 00:07:19 +00:00 1 | I17: 1
A18: 35 Фурсина Кира СОШ44 127 00:19:01 +11:42 35 | I18: 35
I19: =SUM(I15:I18) -> 62 | J19: 3
A23: 14 Давлетшин Рустам гимн2 46 2005 00:08:36 +01:04 = 13 | I23: 13
A24: 36 Гилязов Айнур гимн2 3 2005 00:10:49 +03:17 36 | I24: 36
A25: 13 Магсумова Азалия гимн2 66 2005 00:09:30 +02:11 13 | I25: 13
A26: 26 Хасаншина Эльвина гимн2 25 2005 00:17:17 +09:58 26 | I26: 26
I27: =SUM(I23:I26) -> 88 | J27: 7
A29: 22 Хасянов Руслан СОШ4 56 2006 00:09:12 +01:40 22 | I29: 22
A30: 25 Сагидуллин Адель СОШ4 15 2006 00:09:31 +01:59 25 | I30: 25
A31: 50 Дерябина Диляра СОШ4 37 2006 снят | I31: 47
A32: 16 Тимерханова Алина СОШ4 79 2006 00:11:10 +03:51 16 | I32: 16
I33: =SUM(I29:I32) -> 110 | J33: 14
A35: 5 Шмаков Данил СОШ17 95 2005 00:07:59 +00:27 5 | I35: 5
A36: 55 Бармашов Ярослав СОШ17 96 2006 снят | I36: 55
A37: 44 Фролова Алена СОШ17 94 2005 00:35:59 +28:40 44 | I37: 44
A38: 53 Молчанова Наталья СОШ17 97 2006 снят | I38: 55
I39: =SUM(I35:I38) -> 159 | J39: 24
A41: 11 Набиуллин Радмир СОШ19 86 2006 00:08:19 +00:47 = 10 | I41: 10
A42: 34 Мусин Камиль СОШ19 85 2004 00:10:15 +02:43 34 | I42: 34
A43: 9 Дёмкина Диана СОШ19 88 2006 00:08:40 +01:21 9 | I43: 9
A44: 51 Сердцева Милена СОШ19 87 2004 снят | I44: 47
I45: =SUM(I41:I44) -> 100 | J45: 12
A47: 44 Зямилов Алмаз СОШ21 129 2005 00:17:16 +09:44 = 43 | I47: 43
A48: 54 Сабитов Ильдан СОШ21 128 2004 00:40:20 +32:48 54 | I48: 54
A49: 18 Рахимова Эльвина СОШ21 131 2005 00:12:00 +04:41 18 | I49: 18
A50: 21 Назмеева Эльза СОШ21 130 2005 00:12:20 +05:01 21 | I50: 21
I51: =SUM(I47:I50) -> 136 | J51: 20
A53: 28 Четвертных Прохор СОШ23 90 2005 00:09:47 +02:15 28 | I53: 28
A54: 53 Гилета Дмитрий СОШ23 91 2005 00:31:51 +24:19 53 | I54: 53
A55: 11 Аюпова Ралина СОШ23 93 2005 00:09:17 +01:58 11 | I55: 11
A56: 41 Бютманова Настя СОШ23 92 2005 00:24:19 +17:00 41 | I56: 41
I57: =SUM(I53:I56) -> 133 | J57: 19
A59: 16 Шарипов Никита СОШ24 53 2005 00:08:41 +01:09 16 | I59: 16
A60: 46 Дементьев Герман СОШ24 11 2005 00:22:25 +14:53 46 | I60: 46
A61: 12 Захаркина Виктория СОШ24 76 2005 00:09:24 +02:05 12 | I61: 12
A62: 43 Ключко Кристина СОШ24 33 2005 00:28:07 +20:48 43 | I62: 43
I63: =SUM(I59:I62) -> 117 | J63: 16
A65: 33 Галимов Ришат Гимн29 112 2005 00:10:14 +02:42 33 | I65: 33
A66: 43 Гильмутдинов Булат Гимн29 113 2005 00:17:16 +09:44 43 | I66: 43
A67: 25 Шакирова Марьям Гимн29 114 2005 00:17:07 +09:48 25 | I67: 25
A68: 54 Нуртинова Камилля Гимн29 115 2005 снят | I68: 47
I69: =SUM(I65:I68) -> 148 | J69: 21
A71: 13 Выродов Иван СОШ-32 12 2005 00:08:36 +01:04 13 | I71: 13
A72: 56 Фатхиев Руслан СОШ-32 54 2005 снят | I72: 55
A73: 5 Лозина Ольга СОШ-32 77 2005 00:08:09 +00:50 5 | I73: 5
A74: 28 Каменщикова Дарья СОШ-32 34 2005 00:18:25 +11:06 28 | I74: 28
I75: =SUM(I71:I74) -> 101 | J75: 13
A77: 10 Мухаметшин Айдар СОШ34 101 2005 00:08:19 +00:47 10 | I77: 10
A78: 18 Кашапов Ильназ СОШ34 103 2005 00:08:44 +01:12 18 | I78: 18
A79: 29 Фаляхова Рания СОШ34 107 2005 00:18:28 +11:09 29 | I79: 29
A80: 30 Адиятова Милена СОШ34 104 2005 00:18:29 +11:10 30 | I80: 30
I81: =SUM(I77:I80) -> 87 | J81: 6
A83: 50 Кашапов Риназ СОШ34 105 2005 00:29:43 +22:11 50 | I83: 50
A84: 27 Хафизов Камиль СОШ34 106 2005 00:09:35 +02:03 27 | I84: 27
A85: 39 Сабирова Азалия СОШ34 100 2005 00:21:08 +13:49 39 | I85: 39
A86: 40 Валиуллина Диана СОШ34 102 2005 00:21:22 +14:03 40 | I86: 40
I87: =SUM(I83:I86) -> 156 | J87: 23
A89: 35 Антонов Алексей СОШ37 55 2004 00:10:32 +03:00 35 | I89: 35
A90: 47 Архипченко Альберт СОШ37 13 2004 00:22:37 +15:05 47 | I90: 47
A91: 48 Герасимович Виктория СОШ37 35 2004 снят | I91: 47
A92: 24 Райлян Дарья СОШ37 78 2004 00:16:01 +08:42 24 | I92: 24
I93: =SUM(I89:I92) -> 153 | J93: 22
A95: 15 Никифоров Эдуард кад шк 49 5 2005 00:08:38 +01:06 15 | I95: 15
A96: 26 Ильин Владислав кад шк 49 48 2005 00:09:34 +02:02 26 | I96: 26
A97: 17 Валиуллина Эльза кад шк 49 68 2005 00:11:14 +03:55 17 | I97: 17
A98: 42 Галлямова Аделя кад шк 49 27 2005 00:24:23 +17:04 42 | I98: 42
I99: =SUM(I95:I98) -> 100 | J99: 12
A107: 17 Фатхиев Алмаз СОШ45 16 2005 00:08:42 +01:10 17 | I107: 17
A108: 29 Фисенко Даниил СОШ45 57 2005 00:09:50 +02:18 29 | I108: 29
A109: 55 Зингарова Яна СОШ45 80 2005 снят | I109: 47
A110: 38 ПеньковаОльга СОШ45 38 2005 00:19:48 +12:29 38 | I110: 38
I111: =SUM(I107:I110) -> 131 | J111: 18
A119: 7 Борзенков Артём СОШ55 58 2005 00:08:09 +00:37 7 | I119: 7
A120: 49 Кузнецов Максим СОШ55 17 2004 00:23:14 +15:42 49 | I120: 49
A121: 10 Перминова Ксения СОШ55 81 2005 00:08:56 +01:37 10 | I121: 10
A122: 33 Кузнецова Вера СОШ55 39 2005 00:18:58 +11:39 33 | I122: 33
I123: =SUM(I119:I122) -> 99 | J123: 11
A131: 42 Мансуров Рафаэль гимн57 47 2006 00:16:11 +08:39 42 | I131: 42
A132: 48 Салахов Адель гимн57 4 2006 00:23:05 +15:33 48 | I132: 48
A133: 52 Хафизова Карина гимн57 26 2006 снят | I133: 47
I134: 47
I135: =SUM(I131:I134) -> 184 | J135: 27
A137: 4 Фаизов Равиль СОШ60-1 19 2005 00:07:41 +00:09 4 | I137: 4
A138: 8 Рачеев Марк СОШ60-1 60 2005 00:08:15 +00:43 8 | I138: 8
A139: 8 Саетова Алина СОШ60-1 83 2005 00:08:33 +01:14 8 | I139: 8
A140: 49 Насырова Камиля СОШ60-1 41 2005 снят | I140: 47
I141: =SUM(I137:I140) -> 67 | J141: 4
A143: 12 Бусель Богдан СОШ60-2 20 2006 00:08:34 +01:02 12 | I143: 12
A144: 21 Сафин Ильмир СОШ60-2 61 2006 00:08:50 +01:18 21 | I144: 21
A145: 6 Балетова Арина СОШ60-2 84 2006 00:08:15 +00:56 6 | I145: 6
A146: 34 Кудряшова Светлана СОШ60-2 42 2005 00:19:00 +11:41 34 | I146: 34
I147: =SUM(I143:I146) -> 73 | J147: 5
A149: 45 Сидорин Егор СОШ61 133 00:18:39 +11:07 45 | I149: 45
A150: 41 Морозенко Иван СОШ61 132 00:14:42 +07:10 41 | I150: 41
A151: 14 Нестерова Дарья СОШ61 135 00:10:59 +03:40 14 | I151: 14
A152: 15 Прихожан Жанна СОШ61 134 00:11:02 +03:43 15 | I152: 15
I153: =SUM(I149:I152) -> 115 | J153: 15
A155: 40 Широбоков Влад СОШ64 108 2006 00:14:04 +06:32 40 | I155: 40
A156: 31 Низамиев Данис СОШ64 109 2005 00:09:53 +02:21 31 | I156: 31
A157: 4 Романюк Милена СОШ64 110 2005 00:08:02 +00:43 4 | I157: 4
A158: 20 Юсупова Султания СОШ64 111 2006 00:12:14 +04:55 20 | I158: 20
I159: =SUM(I155:I158) -> 95 | J159: 10
A161: 6 Акульчев Максим Гимн77 121 2005 00:08:02 +00:30 6 | I161: 6
A162: 30 Сабиров Карим Гимн77 122 2006 00:09:52 +02:20 30 | I162: 30
A163: 7 Колпакова Маша Гимн77 123 2006 00:08:18 +00:59 7 | I163: 7
A164: 47 Мигунова Анна Гимн77 120 2005 снят | I164: 47
I165: =SUM(I161:I164) -> 90 | J165: 8
A167: 38 Гатин Данияр гимн 78-1 44 2006 00:11:34 +04:02 38 | I167: 38
A168: 51 Саркисян Эдуард гимн 78-1 1 2006 00:29:53 +22:21 51 | I168: 51
A169: 37 Рябова Дарья гимн 78-1 64 2006 00:19:07 +11:48 = 36 | I169: 36
A170: 45 Потапова Кира гимн 78-1 23 2006 00:36:04 +28:45 45 | I170: 45
I171: =SUM(I167:I170) -> 170 | J171: 25
A173: 39 Мусратуллин Данил гимн 78-2 45 2006 00:11:40 +04:08 39 | I173: 39
A174: 52 Тарасов Максим гимн 78-2 2 2006 00:30:42 +23:10 52 | I174: 52
A175: 36 Габдрахманова Эвелина гимн 78-2 65 2006 00:19:07 +11:48 36 | I175: 36
A176: 46 Нуриахметова Элина гимн 78-2 24 2006 00:39:08 +31:49 46 | I176: 46
I177: =SUM(I173:I176) -> 173 | J177: 26
A179: 32 Силин Константин Кад шк 82-1 6 2006 00:09:58 +02:26 32 | I179: 32
A180: 37 Сагындыков Алмаз Кад шк 82-1 49 2006 00:11:01 +03:29 37 | I180: 37
A181: 23 Швыдченко Надежда Кад шк 82-1 69 2006 00:14:02 +06:43 23 | I181: 23
A182: 31 Габайдуллина Азалия Кад шк 82-1 28 2006 00:18:49 +11:30 31 | I182: 31
I183: =SUM(I179:I182) -> 123 | J183: 17
A185: 20 Шумихин Илья Кад шк 82-2 50 2004 00:08:48 +01:16 20 | I185: 20
A186: 23 Бахарев Владимир Кад шк 82-2 7 2005 00:09:23 +01:51 23 | I186: 23
A187: 19 Бессонова Елизавета Кад шк 82-2 70 2004 00:12:03 +04:44 19 | I187: 19
A188: 32 Ракова Дарья Кад шк 82-2 29 2004 00:18:55 +11:36 32 | I188: 32
I189: =SUM(I185:I188) -> 94 | J189: 9

Sheet Лист2
D1: Командные результаты 1 этапа "Защитник отечества"
I2: сумма | J2: место

Sheet Лист3
